Cogmind - Beta 13 @@@ ROGUE MODE // 2024.04.21 @ 13:29:16 Player: Zach Petti Result: Self-destructed Performance ------------- Evolutions (2) 1000 Regions Visited (4) 800 Robots Destroyed (29) 145 Value Destroyed (785) 785 Prototype IDs (2) 40 Alien Tech Used (0) 0 Bonus (0) 0 TOTAL SCORE: 2770 Bonus ------- None Cogmind --------- Core Integrity 490/550 Matter 232/300 Energy 100/100 System Corruption 0% Temperature Cool (0) Movement Walking (130) Location -8/Materials Parts ------- > --- POWER (2) -------- (None) > --- PROPULSION (3) --- Titanium Leg Titanium Leg Titanium Leg > --- UTILITY (3) ------ Improved Heat Sink Large Storage Unit > --- WEAPON (3) ------- High-powered Shotgun High-powered Shotgun Light Cannon > --- INVENTORY (15) --- Aluminum Leg Aluminum Leg Titanium Leg Heat Sink Small Storage Unit Experimental Sensor Array Light Armor Plating EM Shotgun Medium Laser Peak State ------------ > --- POWER ------------ Light Deuterium Engine Light Nuclear Core > --- PROPULSION ------- Titanium Leg Titanium Leg Titanium Leg > --- UTILITY ---------- Improved Heat Sink Large Storage Unit Light Armor Plating > --- WEAPON ----------- Particle Gun High-powered Shotgun Light Cannon > --- INVENTORY -------- Aluminum Leg Aluminum Leg Titanium Leg Heat Sink Small Storage Unit Experimental Sensor Array Light Armor Plating EM Shotgun Medium Laser [Rating: 28] Favorites ----------- Power Light Deuterium Engine Engine Light Deuterium Engine Power Core Light Nuclear Core Propulsion Aluminum Leg Leg Aluminum Leg Utility Large Storage Unit Device Improved Heat Sink Storage Large Storage Unit Processor Improved Targeting Computer Protection Light Armor Plating Weapon Medium Laser Energy Gun Medium Laser Ballistic Gun Assault Rifle Ballistic Cannon Improved Light Cannon Build | -11 -10 -9 -9 -8 ------- Run | Yrd Mat Mat Min Mat Slots Evolved 4 | . . 2 . 2 Power 1 | . . . . 1 Propulsion 1 | . . 1 . . Utility 1 | . . 1 . . Weapon 1 | . . . . 1 Parts Attached 41 | 4 18 10 5 4 Power 6 | 1 2 1 1 1 Engine 4 | 1 1 1 1 . Core 2 | . 1 . . 1 Reactor . | . . . . . Propulsion 9 | 2 2 4 1 . Treads . | . . . . . Leg 9 | 2 2 4 1 . Wheel . | . . . . . Hover . | . . . . . Flight . | . . . . . Utility 12 | 1 6 4 1 . Device 4 | . 2 2 . . Storage 2 | 1 1 . . . Processor 3 | . 2 1 . . Hackware . | . . . . . Protection 3 | . 1 1 1 . Artifact . | . . . . . Weapon 14 | . 8 1 2 3 Energy Gun 7 | . 4 1 1 1 Energy Cannon . | . . . . . Ballistic Gun 4 | . 2 . . 2 Ballistic Cannon 3 | . 2 . 1 . Launcher . | . . . . . Special Weapon . | . . . . . Impact Weapon . | . . . . . Slashing Weapon . | . . . . . Piercing Weapon . | . . . . . Special Melee Weapon . | . . . . . Unidentified Prototypes 1 | . 1 . . . Parts Lost 11 | . 3 3 1 4 Power 4 | . 1 . 1 2 Propulsion 2 | . 1 1 . . Utility 2 | . . 1 . 1 Weapon 3 | . 1 1 . 1 Highest Loss Streak 4 | . 3 2 1 4 To Critical Strikes . | . . . . . Average Slot Usage (%) 96 | . 95 97 95 92 Engine 8 | . 9 7 9 7 Core 3 | . 3 3 . 6 Leg 29 | . 26 31 31 27 Device 8 | . 5 10 11 9 Storage 12 | . 14 11 11 9 Processor 5 | . 3 10 . . Protection 2 | . 2 . 11 7 Energy Gun 11 | . 13 11 9 6 Ballistic Gun 4 | . 9 . . 10 Ballistic Cannon 7 | . 4 10 11 9 Naked Turns . | . . . . . Heaviest Build 43 | 10 32 35 35 43 Greatest Support 51 | 20 20 51 51 51 Greatest Overweight (x) 2 | . 2 1 . . Average Overweight (x) . | . . . . . Largest Inventory Capacity 15 | 8 15 15 15 15 Average Capacity 13 | 7 11 15 15 15 Most Carried 14 | 6 12 14 10 10 Average Carried 9 | 4 7 10 9 9 Final Capacity 15 | 8 15 15 15 15 Final Carried 12 | 6 12 11 10 9 Class Distribution -------------------- 82% | Mutant 12% | Scavenger-Mutant 3% | Tank Dominant Class ---------------- Mutant | -10/Materials Mutant | -9/Materials Mutant | -9/Mines Tank | -8/Materials Resources | -11 -10 -9 -9 -8 ----------- Run | Yrd Mat Mat Min Mat Matter Collected 895 | 208 332 202 109 44 Remotely . | . . . . . Salvage Created 822 | . 323 272 68 159 Parts 58 | . 24 21 4 9 Haulers Intercepted . | . . . . . Recyclers Shooed . | . . . . . Parts Field Recycled . | . . . . . Retrieved Matter . | . . . . . Parts Self-Destructed . | . . . . . Prevented . | . . . . . Kills | -11 -10 -9 -9 -8 ------- Run | Yrd Mat Mat Min Mat Combat Hostiles Destroyed 23 | . 7 11 2 3 Guns 14 | . 5 7 . 2 Cannons 9 | . 2 4 2 1 Classes Destroyed 8 | . 3 3 1 1 Worker 1 | . . . . 1 Builder 2 | . 1 . . 1 Watcher 3 | . 2 1 . . Swarmer 7 | . . 7 . . Grunt 10 | . 7 1 1 1 Brawler 2 | . . 1 . 1 Duelist 1 | . . . 1 . Sentry 3 | . . 2 . 1 Best Kill Streak 5 | . 3 4 2 5 Combat Bots Only 4 | . 2 4 2 3 Max Kills in Single Turn 2 | . 2 1 1 2 Gunslinging . | . . . . . Exploded . | . . . . . Melee . | . . . . . Uniques/NPCs Destroyed . | . . . . . Combat | -11 -10 -9 -9 -8 -------- Run | Yrd Mat Mat Min Mat Hostile Shots Fired 217 | . 72 73 18 54 Missed 62 | . 20 25 6 11 Damage Taken 2030 | . 704 486 201 639 Core 337 | . 145 109 23 60 Absorbed by Shields . | . . . . . Regen/Repaired (Parts) 18 | . 18 . . . Core Remaining (%) 69 | 100 42 . 67 . Volleys Fired 85 | . 35 30 11 9 Largest 3 | . 2 2 2 3 Hottest 125 | . 90 104 100 125 Shots Fired 159 | . 68 55 12 24 Gun 95 | . 54 25 1 15 Cannon 64 | . 14 30 11 9 Launcher . | . . . . . Special . | . . . . . Kinetic 105 | . 41 30 11 23 Thermal 54 | . 27 25 1 1 Explosive . | . . . . . Electromagnetic . | . . . . . Robot Hit Streak 7 | . 4 7 6 6 Robot Miss Streak 7 | . 3 4 1 7 Penetration Max . | . . . . . Secondary Targets 1 | . 1 . . . Max Gunslinging Chain 1 | . 1 . . . Shots Hit Robots 94 | . 40 29 10 15 Core Hits 46 | . 18 14 3 11 Critical Kills . | . . . . . Critical Parts Destroyed . | . . . . . Critical Strikes 4 | . . 3 1 . Burn 3 | . . 3 . . Blast 1 | . . . 1 . Melee Attacks . | . . . . . Impact . | . . . . . Slashing . | . . . . . Piercing . | . . . . . Sneak Attacks . | . . . . . Combat Hostiles . | . . . . . Follow-up Attacks . | . . . . . Damage Inflicted 1661 | . 577 527 183 374 Guns 892 | . 384 216 18 274 Cannons 769 | . 193 311 165 100 Explosions . | . . . . . Melee . | . . . . . Ramming . | . . . . . Kinetic 1212 | . 379 311 165 357 Thermal 449 | . 198 216 18 17 Explosive . | . . . . . Electromagnetic . | . . . . . Impact . | . . . . . Slashing . | . . . . . Piercing . | . . . . . Highest Corruption 4 | . . 4 4 . Average Corruption 4 | . . 4 4 . Corruption Purged . | . . . . . Corruption Blocked . | . . . . . Effects 4 | . . . 4 . Matter Fused 1 | . . . 1 . Heat Flow Errors 1 | . . . 1 . Energy Discharges 1 | . . . 1 . Weapon Failures 1 | . . . 1 . Overload Shots . | . . . . . Overflow Damage 1 | . . 1 . . Projectiles 1 | . . 1 . . Explosions . | . . . . . Melee . | . . . . . Knockbacks 8 | . 1 2 5 . Impact . | . . . . . Kinetic 8 | . 1 2 5 . Secondary . | . . . . . Self-Inflicted Damage . | . . . . . Shots . | . . . . . Rammed . | . . . . . Targets Rammed . | . . . . . Kicked . | . . . . . Crushed . | . . . . . Highest Temperature 228 | . 90 45 228 54 Average Temperature 43 | . 45 12 129 16 Received Heat Transfer 876 | . 423 48 54 351 Siege Activations . | . . . . . Robots Corrupted . | . . . . . Combat Hostiles . | . . . . . Parts Fried . | . . . . . Impact Corruptions . | . . . . . Robots Melted . | . . . . . Combat Hostiles . | . . . . . Parts Melted . | . . . . . Heat Transferred 1432 | . 544 814 37 37 Parts Sabotaged . | . . . . . Parts Stolen . | . . . . . Parts Stripped . | . . . . . Power Chain Reactions . | . . . . . Alert | -11 -10 -9 -9 -8 ------- Run | Yrd Mat Mat Min Mat Peak Influence 191 | . 174 191 129 102 Initial 74 | . . . 74 50 Average 64 | . 51 73 123 53 Maximum Alert Level . | . . . . . Low Security (%) 100 | 100 100 100 100 100 Level 1 . | . . . . . Level 2 . | . . . . . Level 3 . | . . . . . Level 4 . | . . . . . Level 5 . | . . . . . High Security . | . . . . . Max Security . | . . . . . Squads Dispatched 1 | . 1 . . . Investigation 1 | . 1 . . . Extermination . | . . . . . Reinforcement . | . . . . . Assault . | . . . . . Garrison . | . . . . . Intercept . | . . . . . Searches Triggered . | . . . . . Construction Impeded . | . . . . . Haulers Reinforced . | . . . . . Active Scanning Responses . | . . . . . Cargo Convoy Interrupts . | . . . . . Stealth | -11 -10 -9 -9 -8 --------- Run | Yrd Mat Mat Min Mat Distress Signals 2 | . 1 1 . . Communications Jammed . | . . . . . Distress Signals . | . . . . . Times Spotted 36 | . 10 17 2 7 Peak Tracking Total 5 | . 3 4 2 5 Tactical Retreats 1 | . . 1 . . Traps | -11 -10 -9 -9 -8 ------- Run | Yrd Mat Mat Min Mat Traps Triggered 1 | . 1 . . . Indirectly . | . . . . . Trap Hack Attempts . | . . . . . Triggered . | . . . . . Disarmed . | . . . . . Reprogrammed . | . . . . . Reused . | . . . . . Traps Extracted . | . . . . . Installed . | . . . . . Triggered . | . . . . . Machines | -11 -10 -9 -9 -8 ---------- Run | Yrd Mat Mat Min Mat Machines Disabled 1 | . . 1 . . Max in Single Turn 1 | . . 1 . . Machines Repaired . | . . . . . Machines Dismantled . | . . . . . Machines Sabotaged . | . . . . . Overloaded Fab Kills . | . . . . . Hacking | -11 -10 -9 -9 -8 --------- Run | Yrd Mat Mat Min Mat Machines Accessed 9 | . 4 4 . 1 Terminals 8 | . 3 4 . 1 Fabricators . | . . . . . Repair Stations 1 | . 1 . . . Recycling Units . | . . . . . Scanalyzers . | . . . . . Garrison Access . | . . . . . Total Hacks 12 | . 6 4 . 2 Successful 10 | . 4 4 . 2 Failed 2 | . 2 . . . Catastrophic . | . . . . . Database Lockouts . | . . . . . Manual . | . . . . . Terminals 9 | . 3 4 . 2 Fabricators . | . . . . . Repair Stations 3 | . 3 . . . Recycling Units . | . . . . . Scanalyzers . | . . . . . Garrison Access . | . . . . . Terminal Hacks 8 | . 2 4 . 2 Prototype ID Bank 1 | . . 1 . . Alert Level 2 | . 1 . . 1 Locate Traps 1 | . . 1 . . Dispatch Records 1 | . . 1 . . Maintenance Status 1 | . . 1 . . Reinforcement Status 1 | . 1 . . . Registered Components 1 | . . . . 1 Fabricator Hacks . | . . . . . Repair Station Hacks 2 | . 2 . . . Scan Component 1 | . 1 . . . Repair 1 | . 1 . . . Recycling Unit Hacks . | . . . . . Scanalyzer . | . . . . . Garrison Access Hacks . | . . . . . Unauthorized Hacks . | . . . . . Terminals . | . . . . . Fabricators . | . . . . . Repair Stations . | . . . . . Recycling Units . | . . . . . Scanalyzers . | . . . . . Garrison Access . | . . . . . Data Cores Recovered . | . . . . . Used . | . . . . . Hacking Detections 3 | . 1 1 . 1 Full Trace Events 1 | . 1 . . . Feedback Events . | . . . . . Feedback Blocked . | . . . . . Robot Schematics Acquired . | . . . . . Robots Built . | . . . . . Authchips . | . . . . . Time . | . . . . . Total Robot Build Rating . | . . . . . Part Schematics Acquired . | . . . . . Parts Built . | . . . . . Authchips . | . . . . . Time . | . . . . . Total Part Build Rating . | . . . . . Parts Repaired 1 | . 1 . . . Time 26 | . 26 . . . Parts Recycled . | . . . . . Recycled Matter . | . . . . . Retrieved Matter . | . . . . . Retrieved Components . | . . . . . Parts Scanalyzed . | . . . . . Part Schematics Acquired . | . . . . . Parts Damaged . | . . . . . Bothacking | -11 -10 -9 -9 -8 ------------ Run | Yrd Mat Mat Min Mat Used RIF Installer . | . . . . . Robots Hacked . | . . . . . Non-combat . | . . . . . Combat . | . . . . . Robot Hacks Applied . | . . . . . Relay Couplers Released . | . . . . . Fabnet Peak Effective % . | . . . . . Robots Rewired . | . . . . . Allies Hacked . | . . . . . Hacks Repelled . | . . . . . Allies | -11 -10 -9 -9 -8 -------- Run | Yrd Mat Mat Min Mat Total Allies . | . . . . . Largest Group . | . . . . . Highest-Rated Group . | . . . . . Highest-Rated Ally . | . . . . . Total Orders . | . . . . . Ally Attacks . | . . . . . Total Damage . | . . . . . Kills . | . . . . . Allies Corrupted . | . . . . . Allies Melted . | . . . . . Intel | -11 -10 -9 -9 -8 ------- Run | Yrd Mat Mat Min Mat Robot Analysis Total . | . . . . . Derelict Logs Recovered . | . . . . . Drone Launches . | . . . . . Drone Recoveries . | . . . . . Exploration | -11 -10 -9 -9 -8 ------------- Run | Yrd Mat Mat Min Mat Turns Passed 1919 | 83 824 749 166 97 Spaces Moved 1050 | 63 437 433 80 37 Core 8 | 8 . . . . Treads . | . . . . . Legs 1042 | 55 437 433 80 37 Wheels . | . . . . . Hover . | . . . . . Flight . | . . . . . Fastest Speed 50 | 50 120 130 130 130 Average Speed 144 | 111 151 145 130 130 Slowest Speed 260 | 120 260 190 130 130 Overloaded Moves . | . . . . . Propulsion Burnouts . | . . . . . Robots Hopped . | . . . . . Cave-ins Triggered . | . . . . . Exploration Rate (%) 27 | 3 67 35 29 4 Regions Visited 4 Branch Regions 1 Pre-discovered Areas . | . . . . . Known Exits Taken . | . . . . . Unknown Exits Taken 4 | 1 1 1 1 . Scrap Searched 1 | . . . 1 . Spaces Dug . | . . . . . Terrain Destroyed 1 | . . 1 . . Melee . | . . . . . Projectile 1 | . . 1 . . AOE . | . . . . . Terrain Rammed . | . . . . . Walls Destroyed . | . . . . . Machines Disabled . | . . . . . Actions | -11 -10 -9 -9 -8 --------- Run | Yrd Mat Mat Min Mat Total 1294 | 76 529 495 129 65 Wait 71 | . 20 8 30 13 Move 1046 | 62 436 432 79 37 Hop . | . . . . . Pick Up 42 | 10 17 9 4 2 Fast Attach . | . . . . . Attach 26 | 4 11 3 5 3 Detach 2 | . 2 . . . Swap 15 | . 7 7 . 1 Drop 6 | . . 6 . . Fire 85 | . 35 30 11 9 Melee . | . . . . . Ram . | . . . . . Kick . | . . . . . Crush . | . . . . . Escape Stasis . | . . . . . Rewire 1 | . 1 . . . Trap . | . . . . . Miscellaneous . | . . . . . Route ------- -11/Scrapyard -10/Materials (discovered 3 exits: *Mat / [*Min x2]) -9/Materials (discovered 2 exits: *Mat / [*Min]) -9/Mines -8/Materials (discovered 1 exit: [*Sto]) History --------- Turn | Location | Event 4 | -11/Scrapyard | Discovered new exit (range 16) 84 | -11/Scrapyard | Entered Materials 314 | -10/Materials | Build established: Mutant 523 | -10/Materials | Discovered new exit (range 12) 523 | -10/Materials | Discovered new exit (range 8) 646 | -10/Materials | Core integrity fell below 50% 677 | -10/Materials | Discovered new exit (range 8) 678 | -10/Materials | Lost 3 parts (1p1n1w) 874 | -10/Materials | Repaired Broken Imp. Heat Sink 908 | -10/Materials | Entered another Materials area 908 | -9/Materials | Evolved 2 slots: Propulsion x1, Utility x1 1357 | -9/Materials | Discovered new exit (range 16) 1520 | -9/Materials | Discovered new exit (range 12) 1657 | -9/Materials | Entered Mines 1739 | -9/Mines | Assembled infested the area 1744 | -9/Mines | Assisted by a Guerilla fighting off Assembled 1777 | -9/Mines | Found a damaged Exp. Sensor Array with a note attached 1779 | -9/Mines | Found Prototype Device 1802 | -9/Mines | Discovered new exit (range 16) 1823 | -9/Mines | Entered Materials 1823 | -8/Materials | Evolved 2 slots: Power x1, Weapon x1 1887 | -8/Materials | Discovered new exit (range 15) 1920 | -8/Materials | Self-destructed Last Messages --------------- Lgt. Nuclear Core destroyed. B-36 Bruiser destroyed. Critical hit (Burn: +37). K-01 Serf collects debris. Acquired 44 matter. K-01 Serf collects debris. Lgt. Deuterium Engine destroyed. K-01 Serf collects debris. G-47 Trooper destroyed. U-05 Engineer builds a Door. Lgt. Armor Plating destroyed. U-05 Engineer destroyed. G-47 Trooper destroyed. K-01 Serf collects debris. R-06 Scavenger collects Lgt. Armor Plating. Critical hit (Burn: +37). Y-45 Defender destroyed. K-01 Serf destroyed. K-01 Serf collects debris. R-06 Scavenger collects Terrain Scanner. Map ----- +----------------------------------------------------+ | | | | | | | | | | | | | | | | | | | | | | | | | | | | | | | ?????????????????????????????????????????????????? | | ?????????????????????????????????????????????????? | | ?????????????????????????????????????????????????? | | ??????##################################?????????? | | ??????# ????????? | | ??????# ????????? | | ??????# ????????? | | ??????####+############## #########????????????? | | ???????# #?????????# #????????????????????? | | ???????# " ! #?????????# r#????????????????????? | | ???????# T #?????????#@ #????????????????????? | | ???????# " [#?????????#%==#????????????????????? | | ???????# [[ #?????????+%!!;%???????????????????? | | ???????# [[ #?????????# =%# ]?????????????????? | | ???????########?????????# !#? ]] ???????????????? | | ????????????????????????#% %#?? ?????????????? | | ????????????????????????#%Y #???### #????????????? | | ????????????????????????#%% #???????#????????????? | | ????????????????????????# kg#????????????????????? | | ????????????????????????# #????????????????????? | | ????????????????????????# #????????????????????? | | ???????????????????????? ????????????????????? | | ???????????????????????? ????????????????????? | | ???????????????????????? [< ????????????????????? | | ???????????????????????? g ????????????????????? | | ???????????????????????? ????????????????????? | | ?????????????????????????????????????????????????? | | ?????????????????????????????????????????????????? | | ?????????????????????????????????????????????????? | | ?????????????????????????????????????????????????? | | ?????????????????????????????????????????????????? | | ?????????????????????????????????????????????????? | | ?????????????????????????????????????????????????? | | ?????????????????????????????????????????????????? | | ?????????????????????????????????????????????????? | +----------------------------------------------------+ Best States ------------- Heat Dissipation 45 Energy Generation 23 Energy Capacity 250 Matter Stores 300 Matter Capacity 300 Sight Range 18 Terrain Scan Density 10 Armor Coverage 150 Evasion (%) 55 Targeting Accuracy 6 Item Schematics ----------------- None Robot Schematics ------------------ None Fabricated ------------ Nothing Alien Tech Used ----------------- None Achievements -------------- None Challenges ------------ None Game ------ Seed CompactPhysicsCasing Manual? 0 Play Time 00:20:12 Cumulative 2.2 hours Start 2024.04.21 @ 13:09:47 End 2024.04.21 @ 13:29:16 Sessions 1 Manual Loads 0 Difficulty Rogue Special Mode None Game No. 8 Rogue 8 Adventurer 0 Explorer 0 Win Type - Total 0 Types 0/0/0/0/0/0/0/0/0 Lore% 5 Gallery% 8 Achievement% 8 Wizard Run 0 Options --------- Layout 1 ASCII 0 Keyboard 0 Movement Arrows Keybinds 0 Fullscreen 2 Font 32/SmallcapsGlow Map View 50x35 Zoom Use 0% Tactical HUD 0 Map Filters NONE Filters NONE Steam 1 RUN: 69e2de1c-7c7b-4705-b65f-20edbc6975c3